bitfinex/quotes_SOLUSD_20240729
["timestamp","ask_amount","ask_price","bid_price","bid_amount"]
[1722215279420,20.34,188.32,188.31,12.23]
[1722215280448,40.34,188.32,188.31,12.23]
[1722215280936,20.0,188.31,188.3,12.23]
[1722215281120,20.34,188.31,188.3,12.23]
[1722215281737,20.34,188.31,188.27,6.2632]
[1722215281738,20.0,188.3,188.29,12.23]
[1722215281934,20.34,188.3,188.29,12.23]
[1722215282740,20.0,188.29,188.28,12.23]
[1722215282941,20.34,188.29,188.27,12.23]
[1722215283142,0.34,188.28,188.27,12.23]
[1722215283443,20.34,188.28,188.27,12.23]
[1722215284443,0.34,188.28,188.27,12.23]
[1722215284844,0.17,188.28,188.27,12.23]
[1722215285958,0.34,188.28,188.27,12.23]
[1722215291737,0.34,188.28,188.23,6.88624708]
[1722215291738,20.0,188.26,188.25,12.23]
[1722215291964,40.34,188.26,188.24,12.23]
[1722215292160,20.0,188.24,188.23,12.74154708]
[1722215292361,20.34,188.24,188.23,12.74154708]
[1722215292554,0.34,188.24,188.23,12.74154708]
[1722215294848,25.51182795,188.3,188.23,12.74154708]
[1722215295068,20.0,188.3,188.28,12.23]
[1722215295241,20.0,188.32,188.29,12.23]
[1722215295443,20.0,188.32,188.31,12.23]
[1722215295962,20.0,188.29,188.26,6.66]
[1722215296264,20.0,188.29,188.27,12.23]
[1722215296760,0.34,188.28,188.24,16.3923]
[1722215296966,20.0,188.31,188.27,12.23]
[1722215297164,20.0,188.31,188.29,12.23]
[1722215298239,20.0,188.29,188.27,12.23]
[1722215298442,0.34,188.28,188.26,12.23]
[1722215298845,20.0,188.39,188.27,91.3004]
[1722215299048,20.0,188.4,188.34,12.23]
[1722215299249,24.2458,188.42,188.39,12.23]
[1722215299570,20.0,188.38,188.28,1.06193139]
[1722215299876,20.0,188.38,188.36,12.23]
[1722215300174,35.98,188.42,188.37,12.23]
[1722215300352,40.0,188.44,188.4,12.23]
[1722215300674,20.0,188.44,188.41,12.23]
[1722215300855,20.0,188.44,188.42,12.23]
[1722215301054,40.2249,188.46,188.42,12.23]
[1722215301376,20.0,188.44,188.42,12.23]
[1722215301778,24.2449,188.46,188.42,12.23]
[1722215302067,24.2449,188.46,188.43,12.23]
[1722215302445,20.0,188.46,188.43,12.23]
[1722215302646,32.23,188.49,188.37,12.23]
[1722215302647,24.2444,188.49,188.44,12.23]
[1722215302867,20.0,188.49,188.45,12.23]
[1722215303172,20.0,188.46,188.37,48.92]
[1722215303471,52.4546,188.48,188.42,12.23]
[1722215303681,20.0,188.48,188.44,12.23]
[1722215303987,20.0,188.5,188.44,12.23]
[1722215304273,20.0,188.5,188.45,12.23]
[1722215304577,0.34,188.49,188.46,12.23]
[1722215304752,20.0,188.5,188.46,12.23]
[1722215305369,24.244,188.5,188.46,12.23]
[1722215305849,39.8834,188.52,188.46,12.23]
[1722215306047,51.6198,188.52,188.47,12.23]
[1722215306280,4.2437,188.52,188.48,12.23]
[1722215306468,4.2434,188.53,188.49,12.23]
[1722215306966,20.0,188.49,188.47,12.23]
[1722215307281,20.0,188.54,188.48,12.23]
[1722215307458,20.0,188.54,188.49,12.23]
[1722215308158,5.52091554,188.56,188.51,12.23]
[1722215308351,24.2422,188.59,188.52,12.23]
[1722215308556,20.0,188.59,188.52,12.23]
[1722215308874,4.2422,188.58,188.52,12.23]
[1722215309175,4.2422,188.58,188.47,31.53638683]
[1722215309344,24.242,188.59,188.48,45.0]
[1722215309849,20.0,188.59,188.48,45.0]
[1722215310855,60.986364,188.61,188.48,45.0]
[1722215311063,39.7004,188.61,188.5,24.37]
[1722215311251,0.5,188.6,188.51,45.0]
[1722215312377,20.0,188.61,188.51,45.0]
[1722215312585,20.0,188.61,188.52,20.0]
[1722215313074,0.5,188.6,188.52,20.0]
[1722215313259,24.412,188.59,188.51,45.0]
[1722215313457,0.17,188.58,188.5,24.37]
[1722215313660,0.17,188.58,188.47,6.1056]
[1722215313960,0.17,188.58,188.48,65.0]
[1722215315974,4.9123,188.58,188.48,65.0]
[1722215316157,0.17,188.57,188.48,65.0]
[1722215316478,0.17,188.57,188.48,45.0]
[1722215316861,4.2428,188.56,188.47,6.1056]
[1722215317157,20.84,188.55,188.47,6.1056]
[1722215317479,0.34,188.55,188.47,6.1056]
[1722215318484,4.2431,188.54,188.47,6.1056]
[1722215318652,20.34,188.53,188.46,24.37]
[1722215318853,0.34,188.53,188.46,24.37]
[1722215319060,0.17,188.53,188.46,24.37]
[1722215319472,20.17,188.53,188.46,24.37]
[1722215319865,20.0,188.51,188.43,24.37]
[1722215320065,0.17,188.5,188.43,24.37]
[1722215320778,0.34,188.5,188.43,24.37]
[1722215321565,0.34,188.5,188.42,6.4774]
[1722215321896,0.34,188.5,188.42,30.8474]
[1722215322074,0.17,188.5,188.43,45.0]
[1722215322478,5.52052966,188.56,188.45,24.37]
[1722215322783,15.8893,188.57,188.46,45.0]
[1722215322984,35.8893,188.57,188.46,45.0]
[1722215323281,15.8893,188.57,188.46,45.0]
[1722215323586,20.0,188.6,188.52,24.37]
[1722215323771,24.2417,188.6,188.52,24.37]
[1722215324284,20.0,188.6,188.52,24.37]
[1722215324791,20.5,188.6,188.52,24.37]
[1722215325094,20.0,188.58,188.52,24.37]
[1722215325266,0.17,188.57,188.49,24.37]
[1722215325462,0.34,188.58,188.5,45.0]
[1722215326469,0.17,188.57,188.5,45.0]
[1722215326789,0.34,188.59,188.5,45.0]
[1722215327099,15.98,188.62,188.5,46.06075303]
[1722215327100,20.0,188.62,188.5,46.06075303]
[1722215327263,20.0,188.62,188.5,45.0]
[1722215327471,24.2413,188.62,188.5,45.0]
[1722215328093,20.0,188.62,188.5,45.0]
[1722215328384,0.34,188.61,188.52,24.37]
[1722215328866,0.34,188.61,188.53,45.0]
[1722215329182,0.34,188.61,188.52,24.37]
[1722215329382,20.0,188.6,188.52,24.37]
[1722215329576,0.17,188.59,188.52,24.37]
[1722215330692,0.17,188.61,188.52,24.37]
[1722215330879,0.34,188.61,188.53,45.0]
[1722215331188,0.34,188.61,188.52,24.37]
[1722215331391,20.0,188.62,188.53,45.0]
[1722215331890,24.2414,188.62,188.53,45.0]
[1722215332269,44.2414,188.62,188.52,24.37]
[1722215333180,4.5815,188.61,188.52,24.37]
[1722215333372,0.34,188.61,188.53,45.0]
[1722215333688,40.0,188.59,188.52,24.37]
[1722215333894,0.34,188.58,188.52,24.37]
[1722215334092,4.5822,188.58,188.5,24.37]
[1722215334271,0.34,188.58,188.5,24.37]
[1722215334797,0.34,188.59,188.5,24.37]
[1722215335091,20.34,188.59,188.5,24.37]
[1722215335284,20.0,188.56,188.47,24.37]
[1722215335594,0.17,188.55,188.47,24.37]
[1722215335895,0.5,188.55,188.47,24.37]
[1722215336073,0.53058843,188.48,188.47,24.37]
[1722215336674,0.53058843,188.48,188.47,69.37]
[1722215337073,0.53058843,188.48,188.47,24.37]
[1722215337487,0.53058843,188.48,188.43,2.07087591]
[1722215337488,0.53058843,188.48,188.44,24.37]
[1722215338472,0.53058843,188.48,188.41,30.905]
[1722215340693,0.53058843,188.48,188.42,45.0]
[1722215341299,0.53058843,188.48,188.41,30.905]
[1722215341597,0.53058843,188.48,188.41,24.37]
[1722215343296,0.53058843,188.48,188.42,45.0]
[1722215343472,0.53058843,188.48,188.41,24.37]
[1722215345002,0.53058843,188.48,188.38,2.14970998]
[1722215345003,21.03058843,188.48,188.38,24.37]
[1722215345205,24.5847,188.47,188.38,24.37]
[1722215345385,60.8096,188.46,188.38,24.37]
[1722215345695,20.0,188.44,188.38,24.37]
[1722215345998,0.17,188.43,188.38,24.37]
[1722215346795,0.34,188.43,188.38,24.37]
[1722215347193,0.17,188.43,188.38,24.37]
[1722215347812,0.17,188.43,188.35,24.37]
[1722215347979,20.0,188.42,188.35,24.37]
[1722215348181,0.17,188.41,188.35,24.37]
[1722215350476,20.17,188.43,188.35,24.37]
[1722215350477,20.84,188.42,188.35,24.37]
[1722215350672,20.34,188.42,188.35,24.37]
[1722215351880,0.34,188.42,188.35,24.37]
[1722215352180,0.34,188.43,188.36,1.06168195]
[1722215352480,36.0647,188.46,188.38,24.37]
[1722215352706,16.0647,188.46,188.38,24.37]
[1722215352893,16.0647,188.46,188.39,45.0]
[1722215353403,16.0647,188.46,188.41,24.37]
[1722215354498,0.53058843,188.48,188.41,24.37]
[1722215354809,0.53058843,188.48,188.42,1.06133726]
[1722215354996,0.53058843,188.48,188.43,1.06133726]
[1722215355195,0.53058843,188.48,188.41,24.37]
[1722215356109,0.53058843,188.42,188.41,24.37]
[1722215356289,0.53058843,188.42,188.41,69.37]
[1722215357109,0.53058843,188.42,188.41,24.37]
[1722215358010,0.53058843,188.42,188.38,24.37]
[1722215358188,0.53058843,188.42,188.39,45.0]
[1722215358814,0.53058843,188.42,188.38,24.37]
[1722215359111,0.53058843,188.42,188.39,1.06143656]
[1722215359289,0.53058843,188.42,188.41,24.37]
[1722215360422,0.53058843,188.42,188.38,24.37]
[1722215361987,0.53058843,188.42,188.39,1.06148259]
[1722215362503,0.53058843,188.42,188.38,24.37]
[1722215363115,0.53058843,188.42,188.39,1.06147003]
[1722215363301,0.53058843,188.42,188.4,1.06130316]
[1722215363786,0.53058843,188.42,188.39,45.0]
[1722215366090,0.53058843,188.42,188.38,24.37]
[1722215370444,0.53058843,188.42,188.39,46.06145069]
[1722215370610,0.53058843,188.42,188.4,1.06135508]
[1722215371118,0.53058843,188.42,188.38,24.37]
[1722215373208,0.53058843,188.42,188.4,12.2]
[1722215375307,0.53058843,188.42,188.35,24.4]
[1722215376115,0.53058843,188.36,188.35,24.4]
[1722215378215,0.53058843,188.36,188.35,69.4]
[1722215380115,20.5585,188.48,188.35,89.4]
[1722215380322,0.17,188.47,188.4,24.4]
[1722215380509,0.34,188.47,188.41,1.06136347]
[1722215382335,4.5847,188.47,188.4,24.4]
[1722215382522,24.5847,188.47,188.4,24.4]
[1722215382726,4.5847,188.47,188.4,24.4]
[1722215382912,20.0,188.46,188.4,24.4]
[1722215383116,44.2449,188.46,188.37,24.4]
[1722215383331,0.34,188.45,188.38,20.0]
[1722215383518,0.34,188.45,188.37,24.4]
[1722215383716,20.0,188.44,188.37,24.4]
[1722215383925,0.17,188.43,188.37,24.4]
[1722215388018,0.17,188.43,188.36,45.0]
[1722215390831,20.0,188.42,188.35,24.4]
[1722215391041,20.0,188.4,188.33,24.4]
[1722215391235,0.17,188.39,188.33,24.4]
[1722215392544,20.17,188.4,188.33,24.4]
[1722215393523,20.17,188.4,188.3,2.08675281]
[1722215393837,20.17,188.4,188.32,24.4]
[1722215396043,0.53101105,188.33,188.32,24.4]
[1722215396339,0.53101105,188.33,188.32,89.4]
[1722215397141,0.53101105,188.33,188.32,77.21]
[1722215398323,0.53101105,188.33,188.28,50.92551087]
[1722215398534,0.53101105,188.33,188.32,12.21]
[1722215399227,0.53101105,188.33,188.32,57.21]
[1722215400945,15.3031,188.41,188.32,69.42]
[1722215401136,15.3031,188.41,188.4,12.21]
[1722215401319,15.9986,188.46,188.4,12.21]
[1722215401522,15.9986,188.46,188.45,12.21]
[1722215402529,15.9986,188.46,188.37,48.84]
[1722215402735,15.9986,188.46,188.43,12.21]
[1722215402736,20.2435,188.46,188.43,12.21]
[1722215402937,15.9986,188.46,188.43,12.21]
[1722215403150,15.9986,188.46,188.44,12.21]
[1722215404153,15.9986,188.46,188.45,12.21]
[1722215404326,16.1686,188.46,188.45,12.21]
[1722215404824,36.1686,188.46,188.37,48.84]
[1722215405137,40.0,188.44,188.29,272.026]
[1722215405328,0.34,188.43,188.4,12.21]
[1722215405532,0.34,188.43,188.3,1.06158708]
[1722215405743,0.34,188.43,188.4,12.21]
[1722215406030,40.2436,188.46,188.3,1.06158708]
[1722215406331,0.34,188.45,188.42,12.21]
[1722215406528,0.34,188.45,188.44,12.21]
[1722215406733,0.17,188.45,188.44,12.21]
[1722215407522,15.9986,188.46,188.44,12.21]
[1722215407726,15.9986,188.46,188.45,12.21]
[1722215407934,16.1686,188.46,188.44,12.21]
[1722215408449,16.1686,188.46,188.45,12.21]
[1722215409456,15.9986,188.46,188.45,12.21]
[1722215411560,21.506,188.51,188.45,12.21]
[1722215411766,21.506,188.51,188.37,48.84]
[1722215411767,21.506,188.51,188.49,12.21]
[1722215412855,15.2237,188.51,188.5,12.21]
[1722215413174,12.21,188.56,188.5,12.21]
[1722215413175,20.0,188.57,188.5,12.21]
[1722215413453,15.4547,188.6,188.56,12.21]
[1722215413754,15.4547,188.6,188.58,12.21]
[1722215415252,15.4547,188.6,188.53,24.36]
[1722215415558,15.4547,188.6,188.54,46.06047686]
[1722215416259,0.53039143,188.55,188.54,46.06047686]
[1722215419054,0.53039143,188.55,188.54,45.0]
[1722215419259,0.53039143,188.55,188.53,24.36]
[1722215419629,0.53039143,188.55,188.5,24.36]
[1722215419851,0.53039143,188.55,188.51,65.0]
[1722215421432,0.53039143,188.55,188.48,24.36]
[1722215421638,0.53039143,188.55,188.49,1.06080438]
[1722215422537,0.53039143,188.55,188.51,24.36]
[1722215422739,0.53039143,188.55,188.52,1.06069354]
[1722215422975,0.53039143,188.55,188.51,24.36]
[1722215427940,25.20864231,188.6,188.54,48.72]
[1722215427941,5.51214231,188.6,188.54,48.72]
[1722215428260,0.26061422,188.7,188.58,24.36]
[1722215428456,0.26061422,188.7,188.65,24.36]
[1722215429772,20.0,188.69,188.62,24.36]
[1722215430494,0.17,188.68,188.62,24.36]
[1722215431172,0.34,188.68,188.62,24.36]
[1722215431376,20.0,188.67,188.55,20.0]
[1722215431575,20.0,188.67,188.57,24.36]
[1722215431576,20.0,188.65,188.57,24.36]
[1722215431745,0.17,188.66,188.58,20.0]
[1722215431940,0.17,188.66,188.6,24.36]
[1722215432146,0.17,188.67,188.61,1.06022243]
[1722215432369,0.34,188.68,188.61,1.06022243]
[1722215432565,0.34,188.69,188.6,24.36]
[1722215432772,20.34,188.69,188.63,24.36]
[1722215433067,0.34,188.69,188.63,24.36]
[1722215434776,20.0,188.67,188.63,24.36]
[1722215434957,0.34,188.66,188.6,24.36]
[1722215435752,0.34,188.66,188.61,1.06026421]
[1722215436152,0.53019459,188.62,188.61,1.06026421]
[1722215437884,0.26061422,188.7,188.61,66.06015027]
[1722215438088,0.26061422,188.7,188.66,24.36]
[1722215440268,0.26061422,188.7,188.64,24.36]
[1722215440486,0.26061422,188.7,188.69,24.36]
[1722215442784,0.26061422,188.7,188.64,24.36]
[1722215443258,0.26061422,188.7,188.65,1.05993868]
[1722215443451,0.26061422,188.7,188.67,24.36]
[1722215444688,0.26061422,188.7,188.68,46.05973488]
[1722215444874,0.26061422,188.7,188.68,45.0]
[1722215446156,0.26061422,188.7,188.67,24.36]
[1722215446365,0.26061422,188.7,188.64,24.36]
[1722215446588,0.26061422,188.7,188.65,45.0]
[1722215446757,0.26061422,188.7,188.64,24.36]
[1722215447093,4.50031422,188.7,188.61,6.0467]
[1722215447256,4.50031422,188.7,188.58,1.05991234]
[1722215447257,0.17,188.69,188.58,1.0600184]
[1722215447452,0.17,188.69,188.63,24.36]
[1722215447883,0.17,188.69,188.64,1.06005609]
[1722215448868,0.17,188.69,188.65,1.06005129]
[1722215449451,0.26061422,188.7,188.65,1.06005129]
[1722215449673,0.26061422,188.7,188.66,24.36]
[1722215449875,0.26061422,188.7,188.67,45.0]
[1722215450966,0.26061422,188.7,188.66,24.36]
[1722215451169,0.26061422,188.7,188.67,45.0]
[1722215452874,0.26061422,188.7,188.66,24.36]
[1722215453076,0.26061422,188.7,188.59,1.05976535]
[1722215453263,20.17,188.69,188.62,24.36]
[1722215453469,0.17,188.69,188.62,24.36]
[1722215453890,0.26061422,188.7,188.65,24.36]
[1722215454182,0.26061422,188.7,188.63,1.06001759]
[1722215454373,0.26061422,188.7,188.63,24.36]
[1722215454556,20.26061422,188.7,188.63,24.36]
[1722215454762,0.17,188.69,188.63,24.36]
[1722215455380,16.5943,188.66,188.58,24.36]
[1722215455579,0.34,188.65,188.58,24.36]
[1722215455982,0.17,188.65,188.58,24.36]
[1722215456161,0.53027893,188.59,188.58,24.36]
[1722215456361,16.5943,188.66,188.58,24.36]
[1722215456558,16.5943,188.66,188.63,24.36]
[1722215457366,16.5943,188.66,188.54,2.1251018]
[1722215457565,36.5943,188.66,188.58,24.36]
[1722215457783,0.17,188.65,188.58,24.36]
[1722215458161,16.5943,188.66,188.59,1.060268]
[1722215458489,16.5943,188.66,188.61,24.36]
[1722215458676,16.5943,188.66,188.59,1.060268]
[1722215458877,0.17,188.65,188.59,24.36]
[1722215460291,16.5943,188.66,188.6,46.06026622]
[1722215460588,36.5943,188.66,188.58,24.36]
[1722215460761,0.17,188.65,188.58,24.36]
[1722215461387,0.34,188.65,188.58,24.36]
[1722215461993,20.0,188.63,188.58,24.36]
[1722215462170,0.17,188.62,188.58,24.36]
[1722215462372,0.34,188.62,188.58,24.36]
[1722215463393,6.1249,188.64,188.59,1.06048226]
[1722215463579,16.5943,188.66,188.61,24.36]
[1722215465195,0.17,188.65,188.61,24.36]
[1722215465994,16.5943,188.66,188.64,24.36]
[1722215466196,0.26061422,188.7,188.64,24.36]
[1722215466491,0.26061422,188.7,188.67,24.36]
[1722215469091,0.26061422,188.7,188.64,24.36]
[1722215469092,0.34,188.69,188.64,24.36]
[1722215469292,0.17,188.69,188.64,24.36]
[1722215469474,0.26061422,188.7,188.64,24.36]
[1722215469878,0.26061422,188.7,188.65,46.05989489]
[1722215470296,0.26061422,188.7,188.65,45.0]
[1722215472316,0.26061422,188.7,188.65,46.05987967]
[1722215472604,0.26061422,188.7,188.65,45.0]
[1722215473987,0.26061422,188.7,188.64,24.36]
[1722215475184,0.26061422,188.7,188.65,1.05997595]
[1722215475584,0.26061422,188.7,188.64,24.36]
[1722215476210,0.53011027,188.65,188.64,24.36]
[1722215484896,0.53011027,188.65,188.64,69.36]
[1722215485309,0.53011027,188.65,188.64,60.8]
[1722215486417,0.53011027,188.65,188.64,105.8]
[1722215490298,0.26061422,188.7,188.64,105.8]
[1722215490491,0.26061422,188.7,188.69,12.16]
[1722215491420,0.26061422,188.7,188.69,57.16]
[1722215493837,0.26061422,188.7,188.69,12.16]
[1722215496228,0.79058402,188.7,188.69,12.16]
[1722215503227,0.79058402,188.7,188.65,2.13350549]
[1722215503527,0.79058402,188.7,188.69,12.16]
[1722215507135,0.79058402,188.7,188.69,57.16]
[1722215509639,5.52281374,188.79,188.69,105.8]
[1722215509808,16.3223,188.82,188.78,12.16]
[1722215510007,16.3223,188.82,188.8,12.16]
[1722215511629,16.3223,188.82,188.81,12.16]
[1722215511824,16.4923,188.82,188.81,12.16]
[1722215512019,16.6623,188.82,188.81,12.16]
[1722215513143,16.6623,188.82,188.8,12.16]
[1722215513342,0.17,188.81,188.8,12.16]
[1722215514125,16.3223,188.82,188.8,12.16]
[1722215514440,15.8005,188.87,188.81,25.37920402]
[1722215514641,15.8005,188.87,188.86,12.16]
[1722215516143,16.32999275,188.87,188.85,12.16]
[1722215516946,16.32999275,188.87,188.86,12.16]
[1722215517438,16.49999275,188.87,188.86,12.16]
[1722215519119,4.2364,188.84,188.74,1.05903599]
[1722215519345,0.67,188.83,188.78,12.16]
[1722215519649,0.34,188.83,188.8,12.16]
[1722215520347,0.34,188.83,188.81,12.16]
[1722215520919,0.34,188.84,188.82,12.16]
[1722215521119,0.17,188.84,188.82,12.16]
[1722215521748,16.32999275,188.87,188.83,12.16]
[1722215521953,0.52949275,188.87,188.86,12.16]
[1722215522947,0.52949275,188.87,188.84,1.05905324]
[1722215523123,0.52949275,188.87,188.8,6.1385]
[1722215523327,0.52949275,188.87,188.86,12.16]
[1722215525248,0.52949275,188.87,188.82,24.28]
[1722215526949,24.406,188.86,188.79,24.28]
[1722215527248,0.52949275,188.87,188.8,1.0591838]
[1722215528072,0.52949275,188.87,188.82,24.28]
[1722215529563,0.34,188.86,188.79,24.28]
[1722215529729,0.34,188.86,188.8,1.05913882]
[1722215530248,0.34,188.86,188.79,24.28]
[1722215530433,4.5761,188.86,188.79,24.28]
[1722215530633,0.34,188.86,188.79,24.28]
[1722215531527,40.0,188.85,188.76,24.28]
[1722215531727,0.17,188.84,188.76,24.28]
[1722215532235,0.34,188.84,188.76,24.28]
[1722215533439,0.17,188.84,188.76,24.28]
[1722215534063,0.34,188.85,188.76,25.33924661]
[1722215534254,0.34,188.86,188.76,25.33924661]
[1722215534433,20.0,188.85,188.76,24.28]
[1722215534756,20.0,188.83,188.76,24.28]
[1722215534963,0.17,188.82,188.76,24.28]
[1722215535577,0.17,188.82,188.74,2.14088156]
[1722215535578,20.0,188.8,188.74,2.14088156]
[1722215535741,0.5,188.79,188.73,24.28]
[1722215535951,0.5,188.79,188.7,24.28]
[1722215535952,20.0,188.77,188.7,24.28]
[1722215536262,0.52949275,188.71,188.7,24.28]
[1722215537760,0.52949275,188.71,188.7,26.43296067]
[1722215538638,0.52949275,188.71,188.7,71.43296067]
[1722215539047,0.52949275,188.71,188.7,47.15296067]
[1722215539252,0.52949275,188.71,188.7,2.15296067]
[1722215539442,0.52949275,188.71,188.66,24.28]
[1722215540257,0.52949275,188.71,188.69,24.28]
[1722215541934,26.5664,188.83,188.7,46.05960256]
[1722215542133,30.8032,188.83,188.75,24.28]
[1722215542562,20.0,188.8,188.75,24.28]
[1722215542761,20.0,188.79,188.72,24.28]
[1722215543237,0.34,188.78,188.72,24.28]
[1722215543637,20.0,188.75,188.69,24.28]
[1722215543860,0.17,188.74,188.66,24.28]
[1722215545064,15.5021,188.73,188.66,24.28]
[1722215545866,15.5021,188.73,188.67,45.0]
[1722215546059,15.5021,188.73,188.69,24.28]
[1722215547556,15.5478,188.78,188.72,24.28]
[1722215547773,35.5478,188.78,188.72,24.28]
[1722215547974,15.5478,188.78,188.72,24.28]
[1722215548168,15.5478,188.78,188.73,1.05951527]
[1722215548472,0.5,188.86,188.73,1.05951527]
[1722215548473,15.0117,188.87,188.75,24.28]
[1722215548781,15.0117,188.87,188.8,24.28]
[1722215549149,35.0117,188.87,188.8,24.28]
[1722215549351,15.0117,188.87,188.8,24.28]
[1722215549788,35.0117,188.87,188.8,24.28]
[1722215550780,0.34,188.86,188.8,24.28]
[1722215553771,0.17,188.86,188.8,24.28]
[1722215554077,15.0117,188.87,188.8,24.28]
[1722215554291,15.0117,188.87,188.81,1.0590627]
[1722215554583,15.0117,188.87,188.8,24.28]
[1722215556056,0.52966102,188.81,188.8,24.28]
[1722215558173,0.52966102,188.81,188.8,69.28]
[1722215558578,15.0117,188.87,188.8,69.28]
[1722215558883,15.0117,188.87,188.81,45.0]
[1722215559281,15.0117,188.87,188.8,24.28]
[1722215559871,0.17,188.86,188.8,24.28]
[1722215560396,0.17,188.86,188.77,24.28]
[1722215560397,40.34,188.86,188.77,24.28]
[1722215560770,20.34,188.86,188.77,24.28]
[1722215560970,0.34,188.86,188.77,25.3392226]
[1722215561665,0.17,188.86,188.8,24.28]
[1722215562488,15.0117,188.87,188.8,24.28]
[1722215562995,35.0117,188.87,188.8,24.28]
[1722215563901,15.0117,188.87,188.8,24.28]
[1722215564063,15.0117,188.87,188.81,45.0]
[1722215564392,15.0117,188.87,188.8,25.33898246]
[1722215564597,15.0117,188.87,188.81,45.0]
[1722215565066,15.0117,188.87,188.8,24.28]
[1722215565267,15.0117,188.87,188.85,12.14]
[1722215565491,0.17,188.86,188.85,12.14]
[1722215565885,0.17,188.86,188.84,12.14]
[1722215566967,15.0117,188.87,188.85,12.14]
[1722215567281,15.0117,188.87,188.86,12.14]
[1722215567484,0.7721613,188.88,188.86,12.14]
[1722215567673,0.7721613,188.88,188.87,13.19896087]
[1722215567992,0.7721613,188.88,188.87,12.14]
[1722215568375,25.52241576,188.93,188.87,18.8865]
[1722215568376,5.52241576,188.93,188.87,18.8865]
[1722215568567,2.13917857,189.02,188.92,12.14]
[1722215568783,2.13917857,189.02,188.91,48.56]
[1722215568784,20.0,189.05,188.99,12.14]
[1722215568989,20.7721613,189.07,188.94,1.05826472]
[1722215569195,20.7721613,189.07,188.95,1.05823483]
[1722215569492,20.0,189.05,188.93,66.05815026]
[1722215569665,20.7721613,189.07,188.93,66.05815026]
[1722215570098,0.7721613,189.07,188.93,66.05815026]
[1722215570466,20.0,189.06,188.93,66.05815026]
[1722215570669,0.7721613,189.07,188.93,66.05815026]
[1722215570903,20.0,189.06,188.93,66.05815026]
[1722215571484,0.7721613,189.07,188.94,0.17]
[1722215571793,0.7721613,189.07,188.95,25.30797728]
[1722215571976,0.7721613,189.07,188.96,66.05790009]
[1722215572294,0.7721613,189.07,188.99,24.25]
[1722215572514,0.7721613,189.07,189.0,65.0]
[1722215573175,0.7721613,189.07,189.01,1.05779151]
[1722215573393,0.7721613,189.07,189.0,66.057763]
[1722215573598,0.7721613,189.07,189.0,65.0]
[1722215573898,0.7721613,189.07,189.01,1.05776945]
[1722215574074,0.7721613,189.07,189.0,65.0]
[1722215575497,0.7721613,189.07,189.01,1.05781435]
[1722215575699,0.7721613,189.07,189.02,1.05775362]
[1722215575879,0.7721613,189.07,189.0,65.0]
[1722215576082,0.52910053,189.01,189.0,65.0]